fUSD/lending_fUSD_20250207
["ID","MTS","AMOUNT","RATE_DAILY","PERIOD"]
[352115443,1738953060510,-735.07,0.00016575,2]
[352115444,1738953060520,-1738.56,0.00016575,2]
[352115445,1738953060530,-3945.76,0.00016575,2]
[352115446,1738953060539,-500.0,0.00016575,2]
[352115447,1738953060548,-2688.78,0.00016575,2]
[352115448,1738953060557,-500.0,0.00016575,2]
[352115449,1738953060566,-500.0,0.00016575,2]
[352115450,1738953060575,-500.0,0.00016575,2]
[352115451,1738953060584,-500.0,0.00016575,2]
[352115452,1738953060593,-968.90191444,0.00016575,2]
[352115453,1738953060990,-277.40067284,0.00016575,2]
[352115454,1738953061002,-1659.08741272,0.00016575,2]
[352115455,1738953061011,-3793.59,0.00016575,2]
[352115456,1738953061021,-1379.42,0.00016575,2]
[352115457,1738953061031,-500.0,0.00016575,2]
[352115458,1738953061041,-1412.15,0.00016575,2]
[352115459,1738953061050,-500.0,0.00016575,2]
[352115460,1738953061059,-500.0,0.00016575,2]
[352115461,1738953061069,-1069.48,0.00016575,2]
[352115462,1738953061078,-3147.04,0.00016575,2]
[352115463,1738953061087,-500.0,0.00016575,2]
[352115464,1738953061097,-500.0,0.00016575,2]
[352115465,1738953061106,-1227.99,0.00016575,2]
[352115466,1738953061115,-1157.51,0.00016575,2]
[352115467,1738953061125,-4377.11,0.00016575,2]
[352115468,1738953061134,-502.79541588,0.00016575,2]
[352115469,1738953061143,-500.0,0.00016575,2]
[352115470,1738953061153,-2107.01,0.00016575,2]
[352115471,1738953061162,-162.16530759,0.00016575,2]
[352115472,1738953061174,-3218.84469241,0.00016575,2]
[352115473,1738953061184,-981.15530759,0.00016575,2]
[352115474,1738953061195,-84.38469241,0.00016575,2]
[352115475,1738953061205,-500.0,0.00016575,2]
[352115476,1738953061215,-2398.23,0.00016575,2]
[352115477,1738953061224,-120.95630993,0.00016575,2]
[352115478,1738953061236,-1448.43369007,0.00016575,2]
[352115479,1738953061246,-1689.73,0.00016575,2]
[352115480,1738953061255,-1609.45,0.00016575,2]
[352115481,1738953061264,-806.04,0.00016575,2]
[352115482,1738953061274,-560.68,0.00016575,2]
[352115483,1738953061283,-500.0,0.00016575,2]
[352115484,1738953061293,-500.0,0.00016575,2]
[352115485,1738953061302,-500.0,0.00016575,2]
[352115486,1738953061312,-500.0,0.00016575,2]
[352115487,1738953061321,-500.0,0.00016575,2]
[352115488,1738953061331,-500.0,0.00016575,2]
[352115489,1738953061340,-1981.19,0.00016575,2]
[352115490,1738953061349,-500.0,0.00016575,2]
[352115491,1738953061359,-500.0,0.00016575,2]
[352115492,1738953061368,-2608.17438304,0.00016575,2]
[352115493,1738953061749,-500.0,0.00016438,2]
[352115494,1738953061759,-148.38324154,0.00016438,2]
[352115495,1738953061770,-351.61675846,0.00016438,2]
[352115496,1738953061780,-171.29512609,0.00016575,2]
[352115497,1738953061792,-1732.21049087,0.00016575,2]
[352115498,1738953061802,-397.808405,0.00016575,2]
[352115499,1738953061811,-500.0,0.00016575,2]
[352115500,1738953061821,-500.0,0.00016575,2]
[352115501,1738953061830,-500.0,0.00016575,2]
[352115502,1738953061840,-500.0,0.00016575,2]
[352115503,1738953061849,-500.0,0.00016575,2]
[352115504,1738953061858,-500.0,0.00016575,2]
[352115505,1738953061868,-1993.02,0.00016575,2]
[352115506,1738953061877,-500.0,0.00016575,2]
[352115507,1738953061887,-2170.66110413,0.00016575,2]
[352115508,1738953061898,-942.92889587,0.00016575,2]
[352115509,1738953061908,-500.0,0.00016575,2]
[352115510,1738953061917,-500.0,0.00016575,2]
[352115511,1738953061927,-500.0,0.00016575,2]
[352115512,1738953061936,-1656.57,0.00016575,2]
[352115513,1738953061946,-500.0,0.00016575,2]
[352115514,1738953061955,-572.39,0.00016575,2]
[352115515,1738953061964,-1659.64,0.00016575,2]
[352115516,1738953061974,-1244.55,0.00016575,2]
[352115517,1738953061983,-500.0,0.00016575,2]
[352115518,1738953061992,-456.13346,0.00016575,2]
[352115519,1738953062001,-1645.25,0.00016575,2]
[352115520,1738953062010,-690.72,0.00016575,2]
[352115521,1738953062020,-3050.6,0.00016575,2]
[352115522,1738953062030,-740.02,0.00016575,2]
[352115523,1738953062044,-908.65,0.00016575,2]
[352115524,1738953062053,-3292.49,0.00016575,2]
[352115525,1738953062062,-500.0,0.00016575,2]
[352115526,1738953062071,-718.66,0.00016575,2]
[352115527,1738953062081,-2369.73,0.00016575,2]
[352115528,1738953062097,-1472.44,0.00016575,2]
[352115529,1738953062107,-500.0,0.00016575,2]
[352115530,1738953062116,-1140.5,0.00016575,2]
[352115531,1738953062125,-2918.25,0.00016575,2]
[352115532,1738953062134,-988.08,0.00016575,2]
[352115533,1738953062144,-500.0,0.00016575,2]
[352115534,1738953062153,-3330.00864413,0.00016575,2]
[352115535,1738953062222,-271.44135587,0.00016575,2]
[352115536,1738953062231,-500.0,0.00016575,2]
[352115537,1738953062241,-591.64,0.00016575,2]
[352115538,1738953062250,-1041.93,0.00016575,2]
[352115539,1738953062259,-718.8,0.00016575,2]
[352115540,1738953062268,-500.0,0.00016575,2]
[352115541,1738953062277,-5130.98,0.00016575,2]
[352115542,1738953062295,-500.79,0.00016575,2]
[352115543,1738953062305,-3687.72,0.00016575,2]
[352115544,1738953062315,-500.0,0.00016575,2]
[352115545,1738953062324,-502.9,0.00016575,2]
[352115546,1738953062334,-587.89,0.00016575,2]
[352115547,1738953062344,-500.0,0.00016575,2]
[352115548,1738953062353,-505.96507305,0.00016575,2]
[352115549,1738953062363,-500.0,0.00016575,2]
[352115550,1738953062372,-500.0,0.00016575,2]
[352115551,1738953062381,-538.47,0.00016575,2]
[352115552,1738953062391,-500.0,0.00016575,2]
[352115553,1738953062405,-500.0,0.00016575,2]
[352115554,1738953062414,-500.47873566,0.00016575,2]
[352115555,1738953062423,-500.0,0.00016575,2]
[352115556,1738953062433,-1324.22,0.00016575,2]
[352115557,1738953062442,-500.0,0.00016575,2]
[352115558,1738953062452,-625.67,0.00016575,2]
[352115559,1738953062461,-500.0,0.00016575,2]
[352115560,1738953062471,-500.0,0.00016575,2]
[352115561,1738953062481,-320.797679,0.00016575,2]
[352115562,1738953062490,-500.0,0.00016575,2]
[352115563,1738953062500,-896.75,0.00016575,2]
[352115564,1738953062509,-2083.95,0.00016575,2]
[352115565,1738953062519,-500.0,0.00016575,2]
[352115566,1738953062530,-500.0,0.00016575,2]
[352115567,1738953062544,-545.59596639,0.00016575,2]
[352115568,1738953062554,-500.0,0.00016575,2]
[352115569,1738953062564,-500.0,0.00016575,2]
[352115570,1738953062575,-1548.66,0.00016575,2]
[352115571,1738953062588,-1722.48,0.00016575,2]
[352115572,1738953062598,-939.8,0.00016575,2]
[352115573,1738953062608,-500.0,0.00016575,2]
[352115574,1738953062617,-500.0,0.00016575,2]
[352115575,1738953062627,-283.07118993,0.00016575,2]
[352115576,1738953062643,-216.92881007,0.00016575,2]
[352115577,1738953062657,-306.19118988,0.00016575,2]
[352115578,1738953062670,-2345.96881012,0.00016575,2]
[352115579,1738953062680,-500.0,0.00016575,2]
[352115580,1738953062690,-500.0,0.00016575,2]
[352115581,1738953062700,-2645.94,0.00016575,2]
[352115582,1738953062709,-182.793543,0.00016575,2]
[352115583,1738953062720,-1562.15,0.00016575,2]
[352115584,1738953062731,-500.0,0.00016575,2]
[352115585,1738953062742,-1892.95,0.00016575,2]
[352115586,1738953062752,-1173.62,0.00016575,2]
[352115587,1738953062762,-500.0,0.00016575,2]
[352115588,1738953062772,-1442.94,0.00016575,2]
[352115589,1738953062787,-2072.3,0.00016575,2]
[352115590,1738953062798,-179.16426087,0.00016575,2]
[352115591,1738953062808,-500.0,0.00016575,2]
[352115592,1738953062818,-529.96541021,0.00016575,2]
[352115593,1738953062829,-500.0,0.00016575,2]
[352115594,1738953062839,-2172.3,0.00016575,2]
[352115595,1738953062849,-500.0,0.00016575,2]
[352115596,1738953062859,-500.0,0.00016575,2]
[352115597,1738953062870,-500.0,0.00016575,2]
[352115598,1738953062880,-500.0,0.00016575,2]
[352115599,1738953062890,-500.90416506,0.00016575,2]
[352115600,1738953062901,-500.0,0.00016575,2]
[352115601,1738953062911,-2159.36,0.00016575,2]
[352115602,1738953062922,-1945.02,0.00016575,2]
[352115603,1738953062933,-525.64,0.00016575,2]
[352115604,1738953062943,-937.61,0.00016575,2]
[352115605,1738953062954,-349.17599542,0.00016575,2]
[352115606,1738953062964,-500.0,0.00016575,2]
[352115607,1738953062975,-500.0,0.00016575,2]
[352115608,1738953062985,-509.00952392,0.00016575,2]
[352115609,1738953062994,-546.363448,0.00016575,2]
[352115610,1738953063004,-500.0,0.00016575,2]
[352115611,1738953063015,-500.0,0.00016575,2]
[352115612,1738953063027,-500.0,0.00016575,2]
[352115613,1738953063044,-2718.37,0.00016575,2]
[352115614,1738953063055,-709.78,0.00016575,2]
[352115615,1738953063065,-500.0,0.00016575,2]
[352115616,1738953063075,-2057.88,0.00016575,2]
[352115617,1738953063086,-529.16745186,0.00016575,2]
[352115618,1738953063096,-500.0,0.00016575,2]
[352115619,1738953063107,-500.0,0.00016575,2]
[352115620,1738953063122,-2873.02,0.00016575,2]
[352115621,1738953063139,-500.0,0.00016575,2]
[352115622,1738953063153,-553.44,0.00016575,2]
[352115623,1738953063162,-904.49,0.00016575,2]
[352115624,1738953063172,-505.43415508,0.00016575,2]
[352115625,1738953063182,-500.0,0.00016575,2]
[352115626,1738953063192,-500.0,0.00016575,2]
[352115627,1738953063202,-954.84,0.00016575,2]
[352115628,1738953063213,-819.377073,0.00016575,2]
[352115629,1738953063223,-500.0,0.00016575,2]
[352115630,1738953063232,-1864.81,0.00016575,2]
[352115631,1738953063242,-854.29,0.00016575,2]
[352115632,1738953063253,-500.0,0.00016575,2]
[352115633,1738953063264,-1836.8,0.00016575,2]
[352115634,1738953063274,-500.0,0.00016575,2]
[352115635,1738953063287,-500.0,0.00016575,2]
[352115636,1738953063297,-500.0,0.00016575,2]
[352115637,1738953063307,-500.0,0.00016575,2]
[352115638,1738953063317,-1175.78,0.00016575,2]
[352115639,1738953063327,-2402.86,0.00016575,2]
[352115640,1738953063337,-1786.5,0.00016575,2]
[352115641,1738953063347,-1563.89,0.00016575,2]
[352115642,1738953063356,-4306.94,0.00016575,2]
[352115643,1738953063366,-2827.77,0.00016575,2]
[352115644,1738953063376,-2480.24,0.00016575,2]
[352115645,1738953063385,-500.0,0.00016575,2]
[352115646,1738953063396,-500.0,0.00016575,2]
[352115647,1738953063409,-1475.79234557,0.00016575,2]
[352115648,1738953063428,-500.0,0.00016438,2]
[352115649,1738953063439,-642.66351327,0.00016575,2]
[352115650,1738953063451,-2035.23414116,0.00016575,2]
[352115651,1738953063461,-1026.61,0.00016575,2]
[352115652,1738953063472,-500.0,0.00016575,2]
[352115653,1738953063483,-500.0,0.00016575,2]
[352115654,1738953063493,-500.0,0.00016575,2]
[352115655,1738953063503,-934.56,0.00016575,2]
[352115656,1738953063514,-259.48172201,0.00016575,2]
[352115657,1738953063527,-2246.56827799,0.00016575,2]
[352115658,1738953063541,-500.0,0.00016575,2]
[352115659,1738953063551,-182.4986096,0.00016575,2]
[352115660,1738953063563,-539.8146984,0.00016575,2]
[352115661,1738953063573,-500.0,0.00016575,2]
[352115662,1738953063584,-4028.97,0.00016575,2]
[352115663,1738953063593,-503.15,0.00016575,2]
[352115664,1738953063603,-500.0,0.00016575,2]
[352115665,1738953063612,-500.0,0.00016575,2]
[352115666,1738953063622,-500.0,0.00016575,2]
[352115667,1738953063633,-500.0,0.00016575,2]
[352115668,1738953063643,-302.21124652,0.00016575,2]
[352115669,1738953063652,-533.89287663,0.00016575,2]
[352115670,1738953063662,-303.6728535,0.00016575,2]
[352115671,1738953063911,-196.3271465,0.00016575,2]
[352115672,1738953063921,-500.0,0.00016575,2]
[352115673,1738953063931,-1098.22873243,0.00016575,2]
[352115674,1738953063942,-629.34126757,0.00016575,2]
[352115675,1738953063952,-1880.34,0.00016575,2]
[352115676,1738953063962,-500.0,0.00016575,2]
[352115677,1738953063971,-1009.41001205,0.00016575,2]
[352115678,1738953063983,-315.6,0.00016575,2]
[352115679,1738953064006,-538.95999999,0.00016575,2]
[352115680,1738953064335,-500.0,0.00016438,2]
[352115681,1738953064345,-3615.90562746,0.00016438,2]
[352115682,1738953064486,-757.95437254,0.00016438,2]
[352115683,1738953064496,-500.0,0.00016438,2]
[352115684,1738953064505,-500.0,0.00016438,2]
[352115685,1738953064514,-521.92,0.00016438,2]
[352115686,1738953064524,-1745.028722,0.000165,2]
[352115687,1738953064536,-5165.14998796,0.00016575,2]
[352115688,1738953064547,-500.0,0.00016575,2]
[352115689,1738953064557,-500.0,0.00016575,2]
[352115690,1738953064567,-500.0,0.00016575,2]
[352115691,1738953064577,-500.0,0.00016575,2]
[352115692,1738953064586,-500.0,0.00016575,2]
[352115693,1738953064596,-512.18085431,0.00016575,2]
[352115694,1738953064606,-536.37,0.00016575,2]
[352115695,1738953064615,-1429.01,0.00016575,2]
[352115696,1738953064625,-500.0,0.00016575,2]
[352115697,1738953064635,-1269.87,0.00016575,2]
[352115698,1738953064644,-362.15136288,0.00016575,2]
[352115699,1738953133857,-7000.0,0.0001,2]
[352115700,1738953142625,-1000.0,0.00012275,2]
[352115701,1738953152776,-400.0,0.00012275,2]
[352115702,1738953152797,-600.0,0.00013645,2]
[352115703,1738954042862,376.84186716,0.00020055,120]
[352115704,1738954054663,1000.0,0.00020027,120]
[352115705,1738954068807,4175.55813284,0.0002,120]
[352115706,1738954129061,-191.3721,8.699e-05,2]
[352115707,1738954129083,-406.2134,8.851e-05,2]
[352115708,1738954129106,-5000.0,8.973e-05,2]
[352115709,1738954129129,-4402.4145,8.973e-05,2]
[352115710,1738954131812,-5284.0358,8.973e-05,2]
[352115723,1738954232562,-371.92097039,9.846e-05,2]
[352115724,1738954232571,-388.22,0.00010137,2]
[352115725,1738954232584,-1417.35,0.00010678,2]
[352115726,1738954232593,-245.19,0.00010957,2]
[352115727,1738954232602,-227.69902961,0.00011004,2]
[352115728,1738954232719,-696.62044734,0.00011004,2]
[352115729,1738954232730,-4850.0,0.00011004,2]
[352115730,1738954232742,-498.08542799,0.00011004,2]
[352115731,1738954232766,-622.91559,0.00011004,2]
[352115732,1738954232813,-1547.99950506,0.00011004,2]
[352115733,1738954232823,-760.88,0.00011004,2]
[352115734,1738954232833,-500.0,0.00011014,2]
[352115735,1738954232842,-500.0,0.00011014,2]
[352115736,1738954232851,-645.57,0.00011014,2]
[352115737,1738954232860,-126.96528658,0.00011036,2]
[352115738,1738954232871,-399.20471342,0.00011036,2]
[352115739,1738954232880,-250.0,0.00011046,2]
[352115740,1738954232889,-2398.5,0.0001108,2]
[352115741,1738954232899,-1478.84277807,0.00011115,2]
[352115742,1738954232910,-21.15722193,0.00011115,2]
[352115743,1738954232920,-150.0,0.00011233,2]
[352115766,1738954233164,-866.94,0.00011246,2]
[352115768,1738954233175,-146.07559185,0.00011247,2]
[352115770,1738954233187,-690.98547985,0.00011247,2]
[352115771,1738954233197,-282.84,0.00011253,2]
[352115772,1738954233207,-1127.57,0.00011322,2]
[352115773,1738954233216,-421.4,0.00011448,2]
[352115774,1738954233226,-523.39293994,0.00011474,2]
[352115814,1738954238385,-23376.60706006,0.00011474,2]
[352115815,1738954238395,-166.5,0.00011482,2]
[352115816,1738954238405,-2530.45,0.00011502,2]
[352115817,1738954238416,-200.0,0.00011581,2]
[352115818,1738954238425,-36448.15,0.00011622,2]
[352115819,1738954238435,-1226.94423352,0.00011658,2]
[352115820,1738954238445,-175.87,0.00012007,2]
[352115821,1738954238454,-249.11015839,0.00012115,2]
[352115822,1738954238465,-1034.04,0.00012147,2]
[352115823,1738954238475,-1000.0,0.00012184,2]
[352115824,1738954238484,-2000.0,0.00012196,2]
[352115825,1738954238495,-1543.78,0.00012218,2]
[352115826,1738954238504,-480.75,0.00012526,2]
[352115827,1738954238514,-162.55,0.00012594,2]
[352115828,1738954238524,-1244.77,0.0001262,2]
[352115829,1738954238535,-8102.67,0.00012667,2]
[352115830,1738954238545,-55460.98462316,0.00012695,2]
[352115831,1738954238557,-449.89552753,0.00012695,2]
[352115833,1738954238567,-150.0,0.00012724,2]
[352115834,1738954238576,-161.32982169,0.00012777,2]
[352115836,1738954238586,-127251.32776826,0.00012795,2]
[352115838,1738954238596,-18023.29,0.00012795,2]
[352115841,1738954238606,-150.0,0.00012826,2]
[352115843,1738954238616,-250.0,0.00012861,2]
[352115845,1738954238625,-251.77,0.00012877,2]
[352115847,1738954238635,-1417.35,0.00012942,2]
[352115848,1738954238646,-550.0,0.00013,2]
[352115851,1738954238656,-17146.23346162,0.00013002,25]
[352115853,1738954238665,-150.0,0.00013036,2]
[352115854,1738954238675,-55460.98462309,0.0001314,2]
[352115857,1738954238684,-55460.98462309,0.00013585,2]
[352115858,1738954238694,-150.0,0.00013609,2]
[352115860,1738954238703,-800.0,0.00013645,2]
[352115862,1738954238713,-1034.04,0.00013666,2]
[352115864,1738954238723,-200.0,0.00013699,2]
[352115866,1738954238733,-20442.9,0.00013699,2]
[352115868,1738954238743,-91740.71,0.00013699,2]
[352115870,1738954238755,-10032.73,0.00013699,2]
[352115872,1738954238766,-3441.76,0.00013699,2]
[352115874,1738954238775,-276.72,0.00013699,2]
[352115876,1738954238785,-1000.0,0.00013707,2]
[352115878,1738954238795,-55460.98462309,0.0001403,2]
[352115880,1738954238805,-1000.0,0.00014053,2]
[352115882,1738954238814,-150.0,0.00014116,2]
[352115884,1738954238823,-150.0,0.00014349,2]
[352115886,1738954238834,-150.0,0.00014468,2]
[352115888,1738954238843,-55460.98462309,0.00014475,2]
[352115890,1738954238852,-1000.0,0.00014483,2]
[352115892,1738954238861,-150.0,0.00014527,2]
[352115894,1738954238870,-150.0,0.00014685,2]
[352115895,1738954238879,-162.55,0.00014692,2]
[352115896,1738954238889,-150.0,0.00014704,2]
[352115897,1738954238898,-646.60600784,0.000149,2]
[352115899,1738954238907,-55460.98462309,0.0001492,2]
[352115901,1738954238917,-150.0,0.00014951,2]
[352115903,1738954238927,-580.45527341,0.00014967,2]
[352115905,1738954238936,-173.34649049,0.00014967,2]
[352115907,1738954238946,-150.0,0.00014967,2]
[352115909,1738954238955,-286.43229834,0.00014967,2]
[352115911,1738954238964,-150.0,0.00014967,2]
[352115913,1738954238973,-580.45527341,0.00014984,2]
[352115915,1738954238982,-173.34649049,0.00014984,2]
[352115917,1738954238991,-286.43229834,0.00014984,2]
[352115919,1738954239000,-3068.0,0.00015,3]
[352115921,1738954239010,-600.0,0.00015,2]
[352115923,1738954239019,-580.45527341,0.00015001,2]
[352115925,1738954239028,-173.34649049,0.00015001,2]
[352115927,1738954239037,-286.43229834,0.00015001,2]
[352115929,1738954239046,-150.0,0.00015007,2]
[352115931,1738954239058,-1400.0,0.00015015,2]
[352115933,1738954239067,-580.45527341,0.00015018,2]
[352115935,1738954239076,-173.34649049,0.00015018,2]
[352115937,1738954239086,-286.43229834,0.00015018,2]
[352115939,1738954239095,-580.45527341,0.00015034,2]
[352115941,1738954239105,-173.34649049,0.00015034,2]
[352115943,1738954239114,-286.43229834,0.00015034,2]
[352115945,1738954239123,-150.0,0.00015046,2]
[352115947,1738954239133,-580.45527341,0.00015051,2]
[352115949,1738954239143,-173.34649049,0.00015051,2]
[352115951,1738954239152,-286.43229834,0.00015051,2]
[352115953,1738954239162,-580.45527341,0.00015068,2]
[352115955,1738954239171,-173.34649049,0.00015068,2]
[352115957,1738954239181,-286.43229834,0.00015068,2]
[352115959,1738954239191,-300.0,0.00015068,2]
[352115961,1738954239200,-580.45527341,0.00015085,2]
[352115963,1738954239210,-173.34649049,0.00015085,2]
[352115965,1738954239219,-286.43229834,0.00015085,2]
[352115967,1738954239228,-150.0,0.00015086,2]
[352115969,1738954239237,-150.0,0.000151,2]
[352115971,1738954239247,-580.45527341,0.00015102,2]
[352115973,1738954239255,-173.34649049,0.00015102,2]
[352115975,1738954239264,-286.43229834,0.00015102,2]
[352115977,1738954239274,-580.45527341,0.00015118,2]
[352115979,1738954239283,-173.34649049,0.00015118,2]
[352115981,1738954239292,-286.43229834,0.00015118,2]
[352115983,1738954239305,-150.0,0.00015126,2]
[352115985,1738954239315,-580.45527341,0.00015135,2]
[352115987,1738954239324,-173.34649049,0.00015135,2]
[352115989,1738954239334,-286.43229834,0.00015135,2]
[352115991,1738954239343,-580.45527341,0.00015152,2]
[352115993,1738954239353,-173.34649049,0.00015152,2]
[352115995,1738954239362,-286.43229834,0.00015152,2]
[352115997,1738954239372,-150.0,0.00015165,2]
[352115999,1738954239381,-580.45527341,0.00015169,2]
[352116001,1738954239390,-173.34649049,0.00015169,2]
[352116003,1738954239400,-286.43229834,0.00015169,2]
[352116005,1738954239411,-1034.04,0.00015184,2]
[352116007,1738954239420,-580.45527341,0.00015185,2]
[352116009,1738954239430,-173.34649049,0.00015185,2]
[352116010,1738954239439,-286.43229834,0.00015185,2]
[352116012,1738954239449,-580.45527341,0.00015202,2]
[352116014,1738954239459,-173.34649049,0.00015202,2]
[352116016,1738954239468,-286.43229834,0.00015202,2]
[352116018,1738954239478,-150.0,0.00015205,2]
[352116020,1738954239487,-1417.35,0.00015206,2]
[352116022,1738954239497,-580.45527341,0.00015219,2]
[352116024,1738954239507,-173.34649049,0.00015219,2]
[352116026,1738954239516,-286.43229834,0.00015219,2]
[352116029,1738954239526,-1000.0,0.0001523,2]
[352116031,1738954239536,-580.45527341,0.00015236,2]
[352116033,1738954239545,-173.34649049,0.00015236,2]
[352116035,1738954239559,-286.43229834,0.00015236,2]
[352116037,1738954239569,-150.0,0.00015244,2]
[352116039,1738954239578,-580.45527341,0.00015253,2]
[352116041,1738954239587,-173.34649049,0.00015253,2]
[352116043,1738954239596,-286.43229834,0.00015253,2]
[352116044,1738954239605,-580.45527341,0.00015269,2]
[352116046,1738954239614,-173.34649049,0.00015269,2]
[352116048,1738954239623,-286.43229834,0.00015269,2]
[352116050,1738954239633,-150.0,0.00015284,2]
[352116052,1738954239642,-580.45527341,0.00015286,2]
[352116054,1738954239652,-173.34649049,0.00015286,2]
[352116056,1738954239661,-286.43229834,0.00015286,2]
[352116058,1738954239672,-580.45527341,0.00015303,2]
[352116060,1738954239681,-173.34649049,0.00015303,2]
[352116062,1738954239691,-286.43229834,0.00015303,2]
[352116064,1738954239700,-746.65,0.0001531,2]
[352116066,1738954239710,-150.99,0.0001531,2]
[352116069,1738954239719,-299.99,0.0001531,2]
[352116071,1738954239728,-580.45527341,0.0001532,2]
[352116073,1738954239737,-173.34649049,0.0001532,2]
[352116075,1738954239748,-286.43229834,0.0001532,2]
[352116077,1738954239760,-150.0,0.00015323,2]
[352116079,1738954239769,-580.45527341,0.00015337,2]
[352116081,1738954239779,-173.34649049,0.00015337,2]
[352116083,1738954239789,-286.43229834,0.00015337,2]
[352116085,1738954239798,-580.45527341,0.00015353,2]
[352116086,1738954239810,-173.34649049,0.00015353,2]
[352116089,1738954239820,-286.43229834,0.00015353,2]
[352116090,1738954239830,-150.0,0.00015363,2]
[352116093,1738954239841,-55460.98462309,0.00015365,2]
[352116095,1738954239850,-580.45527341,0.0001537,2]
[352116096,1738954239859,-173.34649049,0.0001537,2]
[352116098,1738954239868,-286.43229834,0.0001537,2]
[352116100,1738954239878,-580.45527341,0.00015387,2]
[352116102,1738954239887,-173.34649049,0.00015387,2]
[352116104,1738954239896,-286.43229834,0.00015387,2]
[352116107,1738954239906,-150.0,0.00015403,2]
[352116108,1738954239915,-580.45527341,0.00015404,2]
[352116110,1738954239925,-173.34649049,0.00015404,2]
[352116113,1738954239934,-286.43229834,0.00015404,2]
[352116115,1738954239944,-580.45527341,0.00015421,2]
[352116117,1738954239953,-173.34649049,0.00015421,2]
[352116119,1738954239963,-286.43229834,0.00015421,2]
[352116121,1738954239973,-580.45527341,0.00015437,2]
[352116123,1738954239983,-173.34649049,0.00015437,2]
[352116125,1738954239992,-286.43229834,0.00015437,2]
[352116127,1738954240002,-150.0,0.00015442,2]
[352116129,1738954240013,-580.45527341,0.00015454,2]
[352116131,1738954240023,-173.34649049,0.00015454,2]
[352116133,1738954240033,-286.43229834,0.00015454,2]
[352116135,1738954240042,-580.45527341,0.00015471,2]
[352116137,1738954240055,-173.34649049,0.00015471,2]
[352116139,1738954240066,-286.43229834,0.00015471,2]
[352116141,1738954240075,-150.0,0.00015482,2]
[352116143,1738954240085,-580.45527341,0.00015488,2]
[352116145,1738954240094,-173.34649049,0.00015488,2]
[352116148,1738954240104,-286.43229834,0.00015488,2]
[352116150,1738954240114,-45376.64,0.00015495,2]
[352116152,1738954240124,-580.45527341,0.00015505,2]
[352116154,1738954240133,-173.34649049,0.00015505,2]
[352116156,1738954240143,-286.43229834,0.00015505,2]
[352116158,1738954240153,-580.45527341,0.00015521,2]
[352116160,1738954240162,-173.34649049,0.00015521,2]
[352116162,1738954240172,-286.43229834,0.00015521,2]
[352116164,1738954240181,-150.0,0.00015521,2]
[352116166,1738954240191,-580.45527341,0.00015538,2]
[352116168,1738954240200,-173.34649049,0.00015538,2]
[352116170,1738954240209,-286.43229834,0.00015538,2]
[352116172,1738954240218,-580.45527341,0.00015555,2]
[352116174,1738954240227,-173.34649049,0.00015555,2]
[352116176,1738954240237,-286.43229834,0.00015555,2]
[352116178,1738954240247,-150.0,0.00015561,2]
[352116180,1738954240256,-500.0,0.00015563,2]
[352116182,1738954240267,-500.0,0.00015563,2]
[352116183,1738954240279,-580.45527341,0.00015572,2]
[352116186,1738954240290,-173.34649049,0.00015572,2]
[352116188,1738954240299,-286.43229834,0.00015572,2]
[352116189,1738954240313,-61948.62,0.00015575,2]
[352116192,1738954240322,-580.45527341,0.00015589,2]
[352116193,1738954240331,-173.34649049,0.00015589,2]
[352116195,1738954240341,-286.43229834,0.00015589,2]
[352116197,1738954240350,-150.0,0.00015601,2]
[352116200,1738954240360,-580.45527341,0.00015605,2]